bitfinex/quotes_ETHUSD_20260113
["timestamp","ask_amount","ask_price","bid_price","bid_amount"]
[1768301001701,0.99420874,3132.6,3132.2,0.08911096]
[1768301002996,0.03187774,3132.6,3132.2,0.08911096]
[1768301003217,0.001,3132.7,3132.2,0.08911096]
[1768301003363,0.32037776,3132.7,3132.2,3.28175438]
[1768301003887,0.32037776,3132.7,3132.2,0.08911096]
[1768301004266,0.32037776,3132.7,3132.2,3.28173495]
[1768301004567,1.28270876,3132.7,3132.2,3.28173495]
[1768301004781,1.28270876,3132.7,3132.2,0.08911096]
[1768301004977,0.32037776,3132.7,3132.2,4.24676575]
[1768301005302,0.962331,3132.6,3132.4,0.08911096]
[1768301005500,0.962331,3132.6,3132.2,3.28173591]
[1768301005789,0.962331,3132.6,3132.4,0.08911096]
[1768301005989,0.001,3132.7,3132.4,0.08911096]
[1768301007465,0.001,3132.7,3132.5,0.96502984]
[1768301007664,0.001,3132.7,3132.6,0.08911096]
[1768301007896,0.001,3132.7,3132.3,4.24663446]
[1768301008273,0.001,3132.7,3132.5,0.08911096]
[1768301008461,0.001,3132.7,3132.3,0.08911096]
[1768301008663,4.18734332,3132.7,3132.0,0.08911096]
[1768301008875,1.22756393,3132.6,3132.0,0.08911096]
[1768301009196,4.18734332,3132.7,3132.0,0.08911096]
[1768301009602,12.2748482,3132.7,3132.0,0.08911096]
[1768301009892,12.24297046,3132.7,3132.0,0.08911096]
[1768301010095,0.03187774,3132.6,3132.0,0.08911096]
[1768301010269,0.99420874,3132.6,3132.0,0.08911096]
[1768301011096,0.962331,3132.4,3132.0,0.08911096]
[1768301012093,0.962331,3132.4,3132.0,0.45133478]
[1768301013371,0.962331,3132.4,3132.0,0.08911096]
[1768301014296,0.962331,3132.4,3131.8,0.08911096]
[1768301014602,0.962331,3132.3,3131.8,0.08911096]
[1768301015005,0.94645521,3132.2,3131.8,0.08911096]
[1768301017804,0.94645521,3132.1,3131.6,0.08911096]
[1768301018194,3.19267399,3132.2,3131.5,0.94578115]
[1768301018808,6.38534798,3132.2,3131.5,0.94578115]
[1768301019387,7.60806533,3132.2,3131.5,0.94578115]
[1768301019788,0.001,3132.3,3131.8,1.03489211]
[1768301019984,0.03287774,3132.3,3131.8,1.03489211]
[1768301020218,3.22543814,3132.3,3131.8,0.94578115]
[1768301021379,5.84182551,3132.2,3131.4,1.03489211]
[1768301022091,4.8953703,3132.0,3131.4,1.03489211]
[1768301022278,4.8953703,3132.0,3131.2,0.08911096]
[1768301022474,5.84182551,3132.0,3131.2,1.03489211]
[1768301023321,3.19294996,3131.9,3131.2,4.22854649]
[1768301024886,6.13908113,3131.8,3131.1,0.08911096]
[1768301025084,0.29725562,3131.7,3131.1,0.08911096]
[1768301025311,3.19315387,3131.7,3131.1,1.03489211]
[1768301025898,5.84182551,3131.6,3131.1,0.08911096]
[1768301026095,0.94645521,3131.6,3131.1,0.08911096]
[1768301026300,8.40783956,3131.7,3131.1,0.08911096]
[1768301026493,0.29735152,3131.6,3131.1,0.08911096]
[1768301026694,8.40783956,3131.7,3131.1,0.08911096]
[1768301027014,8.40783956,3131.7,3131.1,1.03489211]
[1768301028390,4.8953703,3131.5,3130.8,1.03489211]
[1768301030407,2.20119124,3131.6,3130.5,0.00118633]
[1768301030408,0.94645521,3130.8,3130.5,0.00118633]
[1768301030696,0.94645521,3130.8,3130.0,0.00161]
[1768301030896,4.8953703,3130.7,3130.0,0.00161]
[1768301031699,5.84182551,3130.7,3130.0,0.00161]
[1768301032015,0.94645521,3130.7,3130.0,0.00161]
[1768301032224,0.94645521,3130.7,3129.3,0.08911096]
[1768301032225,0.94645521,3130.1,3127.8,1.05448303]
[1768301032432,0.60928255,3130.7,3129.8,0.08911096]
[1768301032433,0.94939115,3129.9,3129.8,0.08911096]
[1768301032637,0.60928255,3130.7,3129.9,0.08911096]
[1768301032638,6.63952117,3130.7,3129.9,0.08911096]
[1768301032925,4.8953703,3130.4,3130.3,0.08724706]
[1768301033224,4.8953703,3130.4,3130.2,0.08911096]
[1768301033430,0.08911095,3130.3,3130.1,0.08911096]
[1768301033731,1.62865981,3130.3,3130.1,0.08911096]
[1768301033882,4.8953703,3130.2,3130.0,0.08911096]
[1768301034089,6.63952117,3130.7,3129.7,0.08911096]
[1768301034090,3.19425303,3130.7,3130.5,0.08911096]
[1768301034309,5.1463703,3130.6,3130.3,0.08911096]
[1768301034504,5.1463703,3130.6,3130.5,1e-08]
[1768301034505,3.44528074,3130.6,3130.5,1e-08]
[1768301034710,8.34065104,3130.6,3130.5,1e-08]
[1768301034919,9.98366191,3130.6,3130.5,1e-08]
[1768301035792,9.98366191,3130.6,3130.1,0.08911096]
[1768301036120,5.08829161,3130.6,3130.3,0.08911096]
[1768301036319,8.28257235,3130.6,3130.1,0.08911096]
[1768301036512,9.1046267,3130.6,3130.1,1e-08]
[1768301036715,1.65031159,3130.5,3130.1,1e-08]
[1768301037290,4.8953703,3130.2,3130.1,1e-08]
[1768301037486,4.8953703,3130.2,3129.9,0.08911096]
[1768301037691,4.8953703,3130.2,3130.1,0.08911096]
[1768301038607,8.0901328,3130.2,3129.9,0.08911096]
[1768301038926,5.24674436,3130.2,3130.1,0.08911096]
[1768301039296,5.24674436,3130.2,3130.1,0.08774923]
[1768301039505,13.3367987,3130.2,3129.6,0.94578115]
[1768301039722,13.3367987,3130.2,3128.9,0.08911096]
[1768301039723,4.8953703,3129.8,3129.3,0.94578115]
[1768301039898,1.07305435,3130.1,3129.3,0.94578115]
[1768301040239,4.8953703,3129.8,3129.3,0.94578115]
[1768301041105,4.8953703,3129.8,3129.2,3.19568631]
[1768301042005,4.8953703,3129.8,3129.1,4.14154138]
[1768301042203,1.16335103,3130.0,3129.2,0.94578115]
[1768301042439,0.251,3130.0,3129.3,4.14136555]
[1768301042919,9.16326602,3130.1,3129.3,4.14136555]
[1768301043102,8.34121167,3130.1,3129.4,0.94578115]
[1768301043715,4.8953703,3129.9,3129.2,4.1414577]
[1768301044456,4.8953703,3129.9,3129.7,0.002]
[1768301045350,3.2267751,3130.0,3129.7,0.002]
[1768301045513,4.4195562,3130.0,3129.7,0.002]
[1768301047813,1.22465884,3130.0,3129.7,0.002]
[1768301048018,3.54611853,3130.2,3129.7,0.99655767]
[1768301048219,0.03187774,3130.1,3129.7,0.002]
[1768301050555,0.03187774,3130.1,3129.7,0.99655767]
[1768301051859,8.13061234,3130.1,3129.7,0.002]
[1768301052063,8.0987346,3130.1,3129.7,0.002]
[1768301052364,8.0987346,3130.1,3129.7,0.00063859]
[1768301052365,0.87011087,3130.0,3129.7,0.00063859]
[1768301054660,4.06507057,3130.0,3129.7,0.00063859]
[1768301055138,0.87011087,3130.0,3129.7,0.00063859]
[1768301055532,0.87011087,3130.0,3129.7,0.93225216]
[1768301057467,0.87011087,3130.0,3129.7,0.93089131]
[1768301058230,0.2970039,3129.9,3129.7,0.93089131]
[1768301058430,8.09876759,3130.1,3129.7,0.93089131]
[1768301058632,0.2970044,3130.0,3129.7,0.93089131]
[1768301058958,0.2970044,3129.9,3129.7,0.93089131]
[1768301059160,3.19489171,3130.0,3129.7,0.93089131]
[1768301059346,0.29723234,3129.9,3129.7,0.93089131]
[1768301060270,0.29723234,3129.8,3129.7,0.93089131]
[1768301060870,0.32911008,3129.8,3129.4,0.002]
[1768301061166,0.82053784,3129.7,3129.4,0.93361357]
[1768301061373,0.29723234,3129.6,3129.4,0.93361357]
[1768301061550,0.03187774,3129.9,3129.4,0.93361357]
[1768301061737,0.29764031,3129.8,3129.4,0.93361357]
[1768301062034,0.29764031,3129.7,3129.4,0.93361357]
[1768301062238,0.29764031,3129.6,3129.4,0.93361357]
[1768301062540,3.22681427,3130.0,3129.4,0.93361357]
[1768301062738,1.05637796,3129.9,3129.4,0.93361357]
[1768301062940,0.2977689,3129.8,3129.4,0.93361357]
[1768301063140,0.2977689,3129.7,3129.4,0.93361357]
[1768301063341,0.2977689,3129.6,3129.4,0.93361357]
[1768301063638,3.95368718,3129.9,3129.4,0.93361357]
[1768301063841,0.29779501,3129.8,3129.4,0.93361357]
[1768301064158,0.29779501,3129.7,3129.4,0.93361357]
[1768301064489,0.29779501,3129.6,3129.4,0.93361357]
[1768301064667,0.75860906,3129.9,3129.4,0.93361357]
[1768301064872,0.29783117,3129.8,3129.4,0.93361357]
[1768301065060,0.29783117,3129.7,3129.4,0.93361357]
[1768301065256,0.75860906,3129.9,3129.4,0.93361357]
[1768301065257,0.29783117,3129.6,3129.4,0.93361357]
[1768301065564,0.29783117,3129.5,3129.4,0.93361357]
[1768301067073,0.75860906,3129.9,3129.5,0.93161357]
[1768301067280,3.22680955,3130.0,3129.5,0.93161357]
[1768301067491,4.51094965,3130.0,3129.5,0.93161357]
[1768301068707,4.51094965,3130.0,3129.7,0.002]
[1768301068878,4.51094965,3130.0,3129.5,0.93161357]
[1768301069079,3.22680955,3130.0,3129.5,0.93161357]
[1768301069309,0.03187774,3130.0,3129.5,0.93161357]
[1768301069480,3.22666384,3130.1,3129.5,0.93161357]
[1768301075500,1.07477661,3130.4,3129.6,0.93669468]
[1768301075819,3.19463519,3130.3,3129.6,4.13197171]
[1768301076677,3.19463519,3130.3,3129.7,0.93669468]
[1768301079206,0.29802606,3130.2,3129.7,0.93669468]
[1768301079386,0.29802606,3130.1,3129.7,0.93669468]
[1768301079587,0.29802606,3130.0,3129.7,0.93669468]
[1768301079811,0.29802606,3129.9,3129.7,0.93669468]
[1768301080118,0.001,3130.0,3129.8,0.93669468]
[1768301080298,0.2979908,3129.9,3129.8,0.93669468]
[1768301082693,0.29795976,3129.9,3129.8,0.93669468]
[1768301085024,0.29793589,3129.9,3129.8,0.93669468]
[1768301085411,0.001,3130.0,3129.8,0.93669468]
[1768301093306,0.001,3130.0,3129.6,0.93669468]
[1768301095611,0.29788892,3129.9,3129.6,0.93669468]
[1768301095828,0.001,3130.0,3129.6,0.93669468]
[1768301096034,0.29788786,3129.9,3129.6,0.93669468]
[1768301096228,0.001,3130.0,3129.5,3.1953662]
[1768301096441,0.29790249,3129.9,3129.5,3.1953662]
[1768301096765,0.001,3130.0,3129.6,0.93669468]
[1768301096941,0.29790069,3129.9,3129.6,0.93669468]
[1768301097133,0.001,3130.0,3129.6,0.93669468]
[1768301097334,0.001,3130.0,3129.7,0.93669468]
[1768301097335,0.29791656,3129.9,3129.7,0.93669468]
[1768301097510,0.001,3130.0,3129.7,0.93669468]
[1768301097710,0.29791737,3129.9,3129.7,0.93669468]
[1768301097912,0.001,3130.0,3129.7,0.93669468]
[1768301098244,0.29791678,3129.9,3129.7,0.93669468]
[1768301098444,0.001,3130.0,3129.7,0.93669468]
[1768301098623,0.29793892,3129.9,3129.7,0.93669468]
[1768301098830,0.001,3130.0,3129.4,3.44845087]
[1768301099040,0.2979366,3129.9,3129.5,0.93669468]
[1768301099244,0.001,3130.0,3129.5,0.93669468]
[1768301099445,0.2979539,3129.9,3129.6,0.93669468]
[1768301099644,0.001,3130.0,3129.6,0.93669468]
[1768301099847,0.29795398,3129.9,3129.6,0.93669468]
[1768301100146,0.001,3130.0,3129.6,0.93669468]
[1768301100311,0.29796854,3129.9,3129.6,0.93669468]
[1768301100508,0.001,3130.0,3129.6,0.93669468]
[1768301100748,0.2979682,3129.9,3129.6,0.93669468]
[1768301100946,0.001,3130.0,3129.6,0.93669468]
[1768301101151,0.29796838,3129.9,3129.6,0.93669468]
[1768301101355,0.001,3130.0,3129.6,0.93669468]
[1768301101565,0.29794135,3129.9,3129.6,0.93669468]
[1768301101859,0.001,3130.0,3129.6,0.93669468]
[1768301102033,0.29794156,3129.9,3129.6,0.93669468]
[1768301102216,0.001,3130.0,3129.6,0.93669468]
[1768301102418,0.29794804,3129.9,3129.6,0.93669468]
[1768301102720,0.001,3130.0,3129.6,0.93669468]
[1768301102934,0.29794749,3129.9,3129.6,0.93669468]
[1768301103218,0.001,3130.0,3129.6,0.93669468]
[1768301103444,0.001,3129.7,3129.6,0.93669468]
[1768301103831,0.001,3129.7,3129.4,0.002]
[1768301104034,0.001,3129.7,3129.4,0.253]
[1768301104368,0.001,3129.7,3129.4,3.44849239]
[1768301104517,0.001,3129.7,3129.4,0.253]
[1768301104718,0.001,3129.7,3129.4,3.44848752]
[1768301105336,0.001,3129.7,3129.4,0.253]
[1768301105533,0.82377661,3129.7,3129.4,0.002]
[1768301106320,0.001,3129.7,3129.4,0.95505851]
[1768301107152,4.01761402,3130.1,3129.4,0.95505851]
[1768301107335,0.29795852,3130.0,3129.4,0.95505851]
[1768301107521,0.29795852,3129.9,3129.4,0.95505851]
[1768301107722,0.29795852,3129.8,3129.4,0.95505851]
[1768301107922,4.04949176,3130.1,3129.4,4.15055472]
[1768301108153,0.29793918,3130.0,3129.4,4.15055472]
[1768301108344,0.29793918,3129.9,3129.4,4.15055472]
[1768301108548,0.29793918,3129.8,3129.4,4.15055472]
[1768301108744,3.22671515,3130.1,3129.4,4.15055472]
[1768301108959,0.2979154,3130.0,3129.4,4.15055472]
[1768301109188,0.2979154,3129.9,3129.4,4.15055472]
[1768301109459,0.2979154,3129.8,3129.5,1.36811398]
[1768301109664,3.22664176,3130.2,3129.5,1.36811398]
[1768301109857,0.29785593,3130.1,3129.5,1.36811398]
[1768301110052,0.29785593,3130.0,3129.5,1.36811398]
[1768301110256,0.29785593,3129.9,3129.6,0.95305851]
[1768301110462,0.29785593,3129.8,3129.6,0.95305851]
[1768301110663,3.22664176,3130.2,3129.6,0.95305851]
[1768301110831,0.29784787,3130.1,3129.6,0.95305851]
[1768301111164,0.29784787,3130.0,3129.6,0.95305851]
[1768301111332,0.29784787,3129.9,3129.4,0.002]
[1768301111532,0.29784787,3129.8,3129.5,0.31975372]
[1768301111737,3.22672055,3130.1,3129.5,0.31975372]
[1768301112035,0.29783753,3130.0,3129.5,0.31975372]
[1768301112234,0.29783753,3129.9,3129.5,0.31975372]
[1768301112554,0.29783753,3129.8,3129.5,0.31975372]
[1768301112755,3.22672055,3130.1,3129.5,0.31975372]
[1768301113055,0.29783337,3130.0,3129.4,0.95505851]
[1768301113242,0.29783337,3129.9,3129.4,0.95505851]
[1768301113442,0.29783337,3129.8,3129.4,0.95505851]
[1768301113639,3.22672055,3130.1,3129.4,0.95505851]
[1768301113833,0.2978296,3130.0,3129.4,0.95505851]
[1768301114038,3.22672055,3130.1,3129.4,0.95505851]
[1768301114039,0.2978296,3129.9,3129.4,0.95505851]
[1768301114251,0.2978296,3129.8,3129.4,0.95505851]
[1768301114431,3.22672055,3130.1,3129.4,0.95505851]
[1768301114631,0.29782586,3130.0,3129.4,0.95505851]
[1768301114832,0.29782586,3129.9,3129.4,0.95505851]
[1768301115172,0.29782586,3129.8,3129.7,0.002]
[1768301116064,0.28512547,3129.8,3129.7,0.002]
[1768301118150,4.30299441,3129.8,3129.7,0.002]
[1768301118372,1.10790208,3129.8,3129.7,0.002]
[1768301118538,0.28512547,3129.8,3129.7,0.002]
[1768301118870,3.4802178,3129.8,3129.7,0.002]
[1768301121674,3.4802178,3129.8,3129.4,0.002]
[1768301121879,3.22697007,3129.8,3129.4,0.002]
[1768301123071,0.03187774,3129.8,3129.4,0.002]
[1768301123277,3.22694277,3129.9,3129.4,0.94098484]
[1768301124978,4.16001268,3129.9,3129.4,0.94098484]
[1768301126182,7.3550694,3129.9,3129.4,0.002]
[1768301126375,7.32319166,3129.9,3129.4,0.002]
[1768301126684,0.03187774,3129.8,3129.4,0.002]
[1768301126889,5.72617739,3129.6,3128.2,0.93898484]
[1768301127185,0.82277661,3129.2,3128.5,3.19640622]
[1768301127989,0.82277661,3129.2,3128.4,4.13549154]
[1768301128281,4.01857675,3129.2,3128.4,0.93898484]
[1768301128986,7.21437689,3129.2,3128.4,0.93898484]
[1768301130667,4.01849787,3129.2,3128.5,4.90340078]
[1768301131055,4.01002905,3129.2,3128.5,4.90340078]
[1768301131578,4.01002905,3129.2,3128.4,4.13550639]
[1768301132586,3.19561899,3129.3,3128.5,0.93898484]
[1768301132587,6.39128892,3129.3,3128.5,0.93898484]
[1768301132792,6.42316666,3129.3,3128.5,0.93898484]
[1768301133085,11.32656744,3129.3,3128.5,0.93898484]
[1768301133288,8.44036094,3129.3,3128.5,0.93898484]
[1768301133491,0.81430779,3129.2,3128.5,0.93898484]
[1768301133691,6.39128892,3129.3,3128.4,0.93898484]
[1768301133859,6.42316666,3129.3,3128.4,0.93898484]
[1768301134059,6.01482377,3129.2,3128.4,0.93898484]
[1768301134282,5.71770857,3129.2,3128.4,0.93898484]
[1768301134479,4.90340078,3129.1,3128.4,0.93898484]
[1768301134859,3.19590923,3129.0,3128.4,0.93898484]
[1768301136497,3.22778697,3129.0,3128.4,0.93898484]
[1768301138999,3.22778697,3129.0,3128.7,0.002]
[1768301139989,4.44191898,3129.0,3128.7,0.002]
[1768301140169,4.41004124,3129.0,3128.7,0.002]
[1768301140799,0.251,3128.9,3128.7,0.002]
[1768301141308,0.03187774,3128.8,3128.7,0.002]
[1768301143484,3.22799126,3128.8,3128.7,0.002]
[1768301144208,0.03187774,3128.8,3128.7,0.002]
[1768301145381,0.28287774,3128.9,3128.7,0.002]
[1768301145919,3.47890401,3128.9,3128.7,0.002]
[1768301147308,4.71815672,3128.9,3128.7,0.002]
[1768301149632,0.03187774,3128.9,3128.7,0.94963829]
[1768301149791,0.251,3129.0,3128.7,0.94963829]
[1768301151722,3.44692272,3129.0,3128.7,0.94963829]
[1768301151918,3.47880046,3129.0,3128.7,0.94963829]
[1768301152150,11.57812396,3129.0,3128.7,0.002]
[1768301152325,1.1578124,3128.9,3128.7,0.002]
[1768301152624,1.18969014,3128.9,3128.7,0.002]
[1768301154328,4.38578179,3128.9,3128.7,0.002]
[1768301156513,7.58187344,3128.9,3128.7,0.002]
[1768301156720,0.29755958,3128.8,3128.7,0.002]
[1768301157010,0.32943732,3128.8,3128.7,0.002]
[1768301157824,0.32946628,3128.8,3128.7,0.002]
[1768301158507,3.52559313,3128.8,3128.7,0.002]
[1768301160535,3.52559313,3128.8,3128.4,0.94963829]
[1768301160741,3.22799126,3128.8,3128.4,0.9476383]
[1768301162824,3.47900018,3128.8,3128.4,0.9476383]
[1768301163022,3.47900018,3128.8,3128.6,0.002]
[1768301165354,3.47900018,3128.8,3128.6,0.93905841]
[1768301167256,0.29795723,3128.7,3128.6,0.93905841]
[1768301168128,0.29795723,3128.7,3128.6,0.002]
[1768301170270,0.29795723,3128.7,3128.6,0.93905841]
[1768301171258,0.29807279,3128.7,3128.6,0.93905841]
[1768301177851,0.29824754,3128.7,3128.6,0.93905841]
[1768301180852,0.22478683,3128.7,3128.6,0.90441717]
[1768301182732,0.22478683,3128.7,3128.6,0.002]
[1768301184738,0.22478683,3128.7,3128.6,0.90441717]
[1768301185423,3.19519442,3129.7,3128.7,0.90241717]
[1768301185623,0.251,3129.6,3128.8,0.90241717]
[1768301185825,0.03187774,3129.5,3128.8,0.90241717]
[1768301186038,0.251,3129.6,3128.8,0.90241717]
[1768301186260,3.19550073,3129.4,3128.8,0.90241717]
[1768301186435,3.19550073,3129.4,3128.9,0.90241717]
[1768301186977,3.44650073,3129.4,3128.9,0.90241717]
[1768301187288,3.19532272,3129.6,3128.9,0.90241717]
[1768301187439,3.44632272,3129.6,3128.9,0.90241717]
[1768301187658,3.44632272,3129.6,3129.1,0.90241717]
[1768301188538,6.64171018,3129.6,3129.1,0.90241717]
[1768301188745,3.44632272,3129.6,3129.1,0.90241717]
[1768301189841,0.81430779,3129.3,3128.6,0.002]
[1768301190064,6.64171018,3129.6,3128.6,0.90441717]
[1768301190065,0.03187774,3129.2,3128.6,0.90441717]
[1768301190271,0.251,3129.2,3128.8,0.90241717]
[1768301191264,3.19561738,3129.3,3128.8,0.90241717]
[1768301191466,0.251,3129.2,3128.8,0.90241717]
[1768301192332,6.39038884,3129.7,3128.9,0.99152813]
[1768301192333,0.251,3129.4,3128.9,0.99152813]
[1768301192533,0.251,3129.5,3129.0,0.90241717]
[1768301192733,3.19531832,3129.6,3129.0,0.90241717]
[1768301192973,3.19510233,3129.8,3129.2,0.90241717]
[1768301192974,0.251,3129.8,3129.2,0.90241717]
[1768301193637,1.06530779,3129.8,3128.9,0.99152813]
[1768301193892,0.84618553,3129.7,3128.9,0.99152813]
[1768301194766,3.19529652,3129.6,3128.9,0.99152813]
[1768301194947,0.03187774,3129.5,3128.9,1.41920659]
[1768301195344,0.03187774,3129.5,3128.9,0.51678942]
[1768301195564,0.03187774,3129.5,3128.9,0.08911096]
[1768301195838,5.75317525,3129.5,3128.7,0.92993335]
[1768301196770,4.00980852,3129.4,3128.7,0.92993335]
[1768301196947,0.03187774,3129.3,3128.6,0.002]
[1768301197147,1.09718553,3129.3,3128.6,0.002]
[1768301197370,0.81430779,3129.2,3128.6,0.002]
[1768301197670,0.84618553,3129.2,3128.6,0.002]
[1768301198642,0.03187774,3129.2,3128.6,0.002]
[1768301199180,3.1957841,3129.2,3128.6,0.93193335]
[1768301199581,3.4467841,3129.2,3128.7,0.08911096]
[1768301199887,3.4467841,3129.2,3128.8,0.92993335]
[1768301200681,0.001,3129.0,3128.8,0.92993335]
[1768301201045,3.19533004,3129.6,3129.0,0.92993335]
[1768301201246,3.19533004,3129.6,3129.1,0.92993335]
[1768301201447,3.44633004,3129.6,3129.1,0.92993335]
[1768301202293,6.64166008,3129.6,3129.1,0.92993335]
[1768301202662,3.44633004,3129.6,3129.1,0.92993335]
[1768301202963,6.64166008,3129.6,3129.1,0.92993335]
[1768301203186,6.64166008,3129.6,3128.9,1.01904431]
[1768301203187,0.66416601,3129.5,3128.9,1.01904431]
[1768301203488,0.03187774,3129.4,3128.9,1.01904431]
[1768301205162,3.19560285,3129.3,3128.9,1.01904431]
[1768301205567,3.19560285,3129.3,3128.9,0.08911096]
[1768301206175,3.19560285,3129.3,3128.9,1.01904431]
[1768301207088,7.61132645,3129.3,3128.7,0.08911096]
[1768301207253,0.9324382,3129.2,3128.6,0.002]
[1768301209175,0.90056046,3129.1,3128.6,0.002]
[1768301209654,3.195802,3129.2,3128.6,0.93193335]
[1768301210364,3.195802,3129.2,3128.7,1.01904431]
[1768301210554,3.51521655,3129.3,3128.7,1.01904431]
[1768301210757,0.31956029,3129.3,3128.7,1.01904431]
[1768301211065,3.19553535,3129.4,3129.0,0.92993335]
[1768301212763,6.3910707,3129.4,3129.0,0.92993335]
[1768301214410,3.19553535,3129.4,3129.0,0.92993335]
[1768301215180,0.251,3129.7,3129.0,0.92993335]
[1768301215361,0.66411847,3129.6,3129.0,0.92993335]
[1768301216177,8.10249045,3129.4,3128.6,0.93193335]
[1768301216479,3.19550073,3129.4,3128.6,0.93193335]
[1768301217112,3.19545234,3129.5,3128.8,0.92993335]
[1768301217411,6.42278242,3129.5,3128.8,0.92993335]
[1768301217608,0.70869009,3129.4,3128.8,0.92993335]
[1768301218175,3.9042125,3129.4,3128.8,0.92993335]
[1768301219409,3.19552241,3129.4,3128.8,0.92993335]
[1768301222224,3.19542591,3129.5,3128.9,0.92993335]
[1768301223211,3.19519442,3129.7,3129.0,0.96189244]
[1768301223516,3.19519442,3129.7,3129.0,0.92993335]
[1768301223517,3.44619442,3129.7,3129.0,0.92993335]
[1768301224522,0.001,3129.1,3129.0,0.92993335]
[1768301225424,0.001,3129.1,3129.0,4.15780167]
[1768301225787,0.251,3129.7,3129.0,3.22786832]
[1768301225788,0.92935725,3129.6,3129.0,3.22786832]
[1768301226194,0.251,3129.7,3129.0,3.22786832]
[1768301226594,0.251,3129.7,3129.0,4.18952243]
[1768301227023,0.251,3129.7,3129.1,0.08911096]
[1768301227529,0.251,3129.7,3129.1,1.05076507]
[1768301229227,0.251,3129.7,3129.3,0.96165411]
[1768301229433,3.22678825,3130.0,3129.3,1.05076507]
[1768301229734,3.19488915,3130.0,3129.3,1.05076507]
[1768301230638,3.19488915,3130.0,3129.3,0.96165411]
[1768301230942,0.92935725,3129.8,3129.0,4.15751191]
[1768301231127,0.92935725,3129.8,3129.1,0.96165411]
[1768301231306,4.12447215,3129.8,3129.1,4.15745118]
[1768301231699,3.22699264,3129.8,3129.1,4.15745118]
[1768301232532,3.22699264,3129.8,3129.2,0.96165411]
[1768301232740,3.1951149,3129.8,3129.2,0.96165411]
[1768301233537,3.19499025,3129.9,3129.2,0.96165411]
[1768301233735,3.19499025,3129.9,3129.2,4.15735399]
[1768301234209,3.19499025,3129.9,3129.3,0.96165411]
[1768301236231,0.001,3129.6,3129.3,0.99361013]
[1768301236538,0.001,3129.6,3129.4,0.96519468]
[1768301242955,0.001,3129.6,3129.2,4.1608163]
[1768301243144,0.001,3129.6,3129.3,3.1955979]
[1768301243345,0.001,3129.6,3129.4,0.41607926]
[1768301243848,0.001,3129.6,3129.4,3.61150975]
[1768301244551,0.94523533,3130.2,3129.5,0.96519468]
[1768301244765,3.4775105,3130.3,3129.5,0.96519468]
[1768301244957,3.4775105,3130.3,3129.6,1.39549001]
[1768301246074,3.4775105,3130.3,3129.7,0.96519468]
[1768301246961,0.94523533,3130.7,3129.8,0.96519468]
[1768301247162,3.19434156,3130.6,3129.8,0.96519468]
[1768301248031,0.001,3130.0,3129.9,4.16018493]
[1768301248240,3.19434156,3130.6,3130.0,0.96519468]
[1768301248426,0.251,3130.8,3130.1,0.96519468]
[1768301248629,3.44513364,3130.8,3130.1,0.96519468]
[1768301248854,3.1941976,3130.7,3130.1,0.96519468]
[1768301249266,4.90303991,3131.4,3130.2,0.96519468]
[1768301249267,5.84827524,3131.2,3130.2,0.96519468]
[1768301249429,3.19402708,3130.9,3130.2,0.96519468]
[1768301250153,3.19386777,3131.0,3130.2,1.05430564]
[1768301250465,3.19386777,3131.0,3130.3,0.96519468]
[1768301250662,4.13904465,3131.1,3130.4,0.96519468]
[1768301250867,4.44248618,3131.1,3130.4,0.96519468]
[1768301252079,0.03187774,3131.0,3130.4,0.96519468]
[1768301252379,3.19387054,3131.0,3130.4,0.96519468]
[1768301252938,4.44247424,3131.1,3130.4,0.96519468]
[1768301253140,3.19379738,3131.1,3130.6,0.96519468]
[1768301253334,3.22567512,3131.1,3130.6,0.96519468]
[1768301253547,0.94523533,3131.0,3130.5,0.08911096]
[1768301253909,5.84827524,3130.8,3130.0,1.05430564]
[1768301254084,5.84827524,3130.8,3130.2,0.08911096]
[1768301254287,9.04241495,3130.8,3130.2,0.08911096]
[1768301254651,4.13937504,3130.8,3130.2,0.08911096]
[1768301256000,3.19413971,3130.8,3130.2,1.08215399]
[1768301256370,3.19397282,3130.9,3130.2,4.27680035]
[1768301256553,3.19397282,3130.9,3130.3,0.99304303]
[1768301257335,3.22585056,3130.9,3130.3,0.99304303]
[1768301257686,3.19397282,3130.9,3130.3,0.99304303]
[1768301258067,3.19397282,3130.9,3130.4,0.08911096]
[1768301258253,4.15246246,3131.0,3130.4,0.08911096]
[1768301259396,0.001,3130.6,3130.4,0.08911096]
[1768301260899,0.001,3130.6,3130.4,1.08215399]
[1768301262501,0.001,3130.6,3130.4,1.51874509]
[1768301263407,4.12002178,3131.5,3130.6,0.99304303]
[1768301263563,4.12002178,3131.5,3130.7,1.08215399]
[1768301263763,7.34528722,3131.5,3130.7,1.08215399]
[1768301263999,0.92666397,3131.2,3130.5,1.24404303]
[1768301264193,0.03187774,3131.1,3130.5,1.24404303]
[1768301264684,0.03187774,3131.1,3130.5,4.43836612]
[1768301264860,0.92666397,3131.2,3130.6,0.08911096]
[1768301265297,3.19361586,3131.3,3130.6,1.08215399]
[1768301265456,3.19361586,3131.3,3130.7,0.40978349]
[1768301266274,4.15205035,3131.4,3130.7,1.40282652]
[1768301267186,0.03187774,3131.4,3130.8,1.08215399]
[1768301267491,0.03187774,3131.4,3130.8,0.08911096]
[1768301267492,0.92666397,3131.4,3130.8,0.08911096]
[1768301267801,0.95854171,3131.4,3130.8,0.08911096]
[1768301269286,4.15210009,3131.4,3130.8,0.08911096]
[1768301271199,0.001,3131.1,3130.8,0.08911096]
[1768301271395,0.001,3131.1,3130.9,0.36930648]
[1768301273194,0.92666397,3130.9,3129.9,0.08911096]
[1768301273388,0.03287774,3131.1,3129.9,4.2770986]
[1768301273389,5.82970388,3130.7,3129.9,4.2770986]
[1768301273616,5.82970388,3130.7,3129.9,1.08215399]
[1768301274127,0.92666397,3130.7,3129.9,4.27709777]
[1768301274834,4.12092482,3130.7,3129.9,4.27709777]
[1768301275530,0.92666397,3130.6,3129.9,3.28405474]
[1768301275734,0.92666397,3130.6,3129.9,4.27709777]
[1768301278117,3.19426085,3130.7,3129.9,4.27709777]
[1768301278316,3.19426085,3130.7,3130.1,0.08911096]
[1768301278520,3.19426085,3130.7,3130.1,1.08215399]
[1768301279197,3.19426085,3130.7,3130.1,0.08911096]
[1768301279523,4.12092482,3130.7,3130.1,0.08911096]
[1768301279727,7.3151541,3130.7,3129.9,1.08215399]
[1768301279935,0.92666397,3130.6,3129.9,1.33315399]
[1768301281241,4.12099565,3130.6,3129.9,1.33315399]
[1768301281941,0.92666397,3130.5,3129.9,0.08911096]
[1768301282122,0.92666397,3130.5,3129.9,0.34011096]
[1768301282640,4.12089285,3130.7,3129.9,4.5281441]
[1768301283419,4.12089285,3130.7,3130.2,0.002]
[1768301285225,4.15277059,3130.7,3130.2,0.002]
[1768301286047,3.19422888,3130.7,3130.2,0.002]